[Event "World Junior Chess Championship U20 2022"]
[White "Rohith, Krishna S"]
[Black "Milikow, Yoav"]
[WhiteFideId "46617051"]
[BlackFideId "2822237"]
[WhiteElo "2370"]
[BlackElo "2412"]
[Result "1/2-1/2"]
[Round "05"]
[TimeControl "5400+30"]
[Date "2022.10.15"]
[WhiteClock "0:01:02"]
[BlackClock "0:24:09"]

1. d4 {[%clk 1:30:33]}  Nf6 {[%clk 1:30:52]} 2. c4 {[%clk 1:30:47]}  e6 {[%clk 1:31:17]} 3. Nf3 {[%clk 1:31:09]}  d5 {[%clk 1:31:37]} 4. g3 {[%clk 1:31:31]}  Bb4+ {[%clk 1:31:58]} 5. Bd2 {[%clk 1:31:53]}  Be7 {[%clk 1:32:12]} 6. Qc2 {[%clk 1:31:58]}  O-O {[%clk 1:32:20]} 7. Bg2 {[%clk 1:32:19]}  c6 {[%clk 1:32:12]} 8. O-O {[%clk 1:32:23]}  Nbd7 {[%clk 1:32:12]} 9. Rd1 {[%clk 1:28:24]}  b6 {[%clk 1:32:13]} 10. Bf4 {[%clk 1:23:58]}  Nh5 {[%clk 1:29:29]} 11. Bc1 {[%clk 1:24:15]}  Nhf6 {[%clk 1:29:53]} 12. Nbd2 {[%clk 1:15:54]}  Ba6 {[%clk 1:25:06]} 13. b3 {[%clk 1:14:31]}  c5 {[%clk 1:24:27]} 14. Bb2 {[%clk 1:03:55]}  Qc7 {[%clk 1:18:35]} 15. Rac1 {[%clk 1:00:37]}  Bb7 {[%clk 1:09:11]} 16. Qb1 {[%clk 0:55:37]}  Rad8 {[%clk 1:06:22]} 17. cxd5 {[%clk 0:51:16]}  exd5 {[%clk 1:06:31]} 18. Ne1 {[%clk 0:47:49]}  Rfe8 {[%clk 1:03:56]} 19. Nd3 {[%clk 0:41:26]}  Qb8 {[%clk 1:02:35]} 20. e3 {[%clk 0:40:39]}  Bd6 {[%clk 0:57:32]} 21. dxc5 {[%clk 0:37:41]}  bxc5 {[%clk 0:57:53]} 22. Bxf6 {[%clk 0:38:01]}  Nxf6 {[%clk 0:55:45]} 23. Nxc5 {[%clk 0:38:10]}  Bc8 {[%clk 0:55:17]} 24. b4 {[%clk 0:28:07]}  h5 {[%clk 0:51:18]} 25. a3 {[%clk 0:22:11]}  h4 {[%clk 0:47:27]} 26. Nf1 {[%clk 0:22:33]}  Bg4 {[%clk 0:46:26]} 27. Re1 {[%clk 0:22:23]}  hxg3 {[%clk 0:43:34]} 28. hxg3 {[%clk 0:22:46]}  g6 {[%clk 0:43:22]} 29. Qb2 {[%clk 0:16:29]}  Be5 {[%clk 0:40:44]} 30. Qb3 {[%clk 0:16:53]}  Qb6 {[%clk 0:38:39]} 31. Nh2 {[%clk 0:15:38]}  Bc8 {[%clk 0:37:59]} 32. Red1 {[%clk 0:13:20]}  d4 {[%clk 0:37:17]} 33. f4 {[%clk 0:11:22]}  Bb8 {[%clk 0:37:37]} 34. e4 {[%clk 0:11:32]}  a5 {[%clk 0:35:23]} 35. e5 {[%clk 0:08:57]}  Nh5 {[%clk 0:35:35]} 36. Nf1 {[%clk 0:07:25]}  axb4 {[%clk 0:34:16]} 37. axb4 {[%clk 0:07:45]}  Bg4 {[%clk 0:33:57]} 38. Rd2 {[%clk 0:07:53]}  d3 {[%clk 0:33:35]} 39. Kh2 {[%clk 0:05:47]}  Kg7 {[%clk 0:31:06]} 40. Rxd3 {[%clk 0:01:42]}  Rxd3 {[%clk 0:30:06]} 41. Qxd3 {[%clk 0:02:04]}  Rh8 {[%clk 0:29:25]} 42. Kg1 {[%clk 0:29:19]}  Qxb4 {[%clk 0:59:41]} 43. Rc4 {[%clk 0:29:17]}  Qe1 {[%clk 0:51:30]} 44. e6 {[%clk 0:19:57]}  Nf6 {[%clk 0:46:11]} 45. Ra4 {[%clk 0:06:58]}  Bxe6 {[%clk 0:43:33]} 46. Qd4 {[%clk 0:06:59]}  Bf5 {[%clk 0:40:03]} 47. Ra6 {[%clk 0:06:55]}  Qe7 {[%clk 0:40:20]} 48. Nb7 {[%clk 0:03:28]}  Bc8 {[%clk 0:35:10]} 49. Ne3 {[%clk 0:01:46]}  Re8 {[%clk 0:34:49]} 50. Kh2 {[%clk 0:01:26]}  Bxb7 {[%clk 0:27:15]} 51. Bxb7 {[%clk 0:01:50]}  Rd8 {[%clk 0:27:27]} 52. Qb2 {[%clk 0:01:23]}  Rh8+ {[%clk 0:26:20]} 53. Kg2 {[%clk 0:01:46]}  Ba7 {[%clk 0:22:57]} 54. Rxa7 {[%clk 0:01:04]}  Qxe3 {[%clk 0:22:58]} 55. Ra6 {[%clk 0:01:28]}  Qe7 {[%clk 0:23:00]} 56. Bf3 {[%clk 0:01:04]}  Rd8 {[%clk 0:22:25]} 57. g4 {[%clk 0:00:40]}  Rd6 {[%clk 0:22:45]} 58. Rxd6 {[%clk 0:00:32]}  Qxd6 {[%clk 0:23:14]} 59. g5 {[%clk 0:00:40]}  Qxf4 {[%clk 0:23:42]} 60. gxf6+ {[%clk 0:01:02]}  Qxf6 {[%clk 0:24:09]} 1/2-1/2


[Site "http://www.chessbomb.com"]

[Event "World Junior Chess Championship U20 2022"]
[White "Veiga, Jose Francisco R P Neves"]
[Black "Ansat, Aldiyar"]
[WhiteFideId "1930087"]
[BlackFideId "13715658"]
[WhiteElo "2409"]
[BlackElo "2262"]
[Result "0-1"]
[Round "05"]
[TimeControl "5400+30"]
[Date "2022.10.15"]
[WhiteClock "0:24:33"]
[BlackClock "0:20:07"]

1. d4 {[%clk 1:26:38]}  Nf6 {[%clk 1:30:37]} 2. Nf3 {[%clk 1:26:41]}  g6 {[%clk 1:30:56]} 3. Nc3 {[%clk 1:26:35]}  d5 {[%clk 1:30:45]} 4. Bf4 {[%clk 1:26:32]}  Bg7 {[%clk 1:28:36]} 5. Nb5 {[%clk 1:26:15]}  Na6 {[%clk 1:28:59]} 6. e3 {[%clk 1:26:29]}  O-O {[%clk 1:28:43]} 7. h3 {[%clk 1:14:17]}  c6 {[%clk 1:20:32]} 8. Nc3 {[%clk 1:14:37]}  Qb6 {[%clk 1:18:15]} 9. Rb1 {[%clk 1:08:31]}  c5 {[%clk 1:13:10]} 10. Bxa6 {[%clk 1:06:30]}  Qxa6 {[%clk 1:09:04]} 11. dxc5 {[%clk 1:05:37]}  Bf5 {[%clk 0:51:36]} 12. Be5 {[%clk 0:49:57]}  Rac8 {[%clk 0:48:41]} 13. Bd4 {[%clk 0:35:47]}  Rfd8 {[%clk 0:44:40]} 14. Qe2 {[%clk 0:28:50]}  Qxe2+ {[%clk 0:43:11]} 15. Kxe2 {[%clk 0:29:15]}  Ne4 {[%clk 0:40:32]} 16. g4 {[%clk 0:17:07]}  Bd7 {[%clk 0:33:08]} 17. Rhd1 {[%clk 0:08:35]}  Nxc3+ {[%clk 0:19:30]} 18. bxc3 {[%clk 0:09:03]}  f6 {[%clk 0:19:44]} 19. g5 {[%clk 0:07:56]}  Rc7 {[%clk 0:19:58]} 20. h4 {[%clk 0:07:20]}  Bg4 {[%clk 0:19:11]} 21. gxf6 {[%clk 0:07:27]}  Bxf6 {[%clk 0:13:19]} 22. Bxf6 {[%clk 0:07:50]}  exf6 {[%clk 0:13:46]} 23. Rd4 {[%clk 0:07:06]}  h5 {[%clk 0:14:06]} 24. Rf4 {[%clk 0:06:37]}  Rdd7 {[%clk 0:10:39]} 25. Kd2 {[%clk 0:06:32]}  Bxf3 {[%clk 0:09:14]} 26. Rxf3 {[%clk 0:06:58]}  Kf7 {[%clk 0:09:39]} 27. Rg3 {[%clk 0:05:47]}  Rxc5 {[%clk 0:07:59]} 28. Rbg1 {[%clk 0:06:05]}  Rdc7 {[%clk 0:07:14]} 29. Rxg6 {[%clk 0:06:27]}  Rxc3 {[%clk 0:07:42]} 30. Rg7+ {[%clk 0:06:13]}  Ke6 {[%clk 0:08:08]} 31. Rxc7 {[%clk 0:06:07]}  Rxc7 {[%clk 0:07:57]} 32. Rg8 {[%clk 0:05:48]}  Kf5 {[%clk 0:07:27]} 33. f3 {[%clk 0:05:38]}  Rc4 {[%clk 0:05:59]} 34. Rd8 {[%clk 0:05:47]}  Rxh4 {[%clk 0:05:18]} 35. Rxd5+ {[%clk 0:06:16]}  Kg6 {[%clk 0:05:09]} 36. Rd8 {[%clk 0:04:30]}  Ra4 {[%clk 0:05:15]} 37. e4 {[%clk 0:03:49]}  Rxa2 {[%clk 0:05:39]} 38. Rg8+ {[%clk 0:04:07]}  Kh7 {[%clk 0:05:47]} 39. Rg1 {[%clk 0:04:34]}  Ra5 {[%clk 0:02:44]} 40. f4 {[%clk 0:04:56]}  h4 {[%clk 0:03:02]} 41. f5 {[%clk 0:04:35]}  Ra3 {[%clk 0:02:22]} 42. Rg4 {[%clk 0:24:15]}  h3 {[%clk 0:29:06]} 43. Rh4+ {[%clk 0:24:37]}  Kg7 {[%clk 0:29:22]} 44. c3 {[%clk 0:25:00]}  Ra2+ {[%clk 0:29:15]} 45. Kd3 {[%clk 0:25:30]}  h2 {[%clk 0:26:32]} 46. Kc4 {[%clk 0:25:48]}  Rb2 {[%clk 0:25:51]} 47. Kd5 {[%clk 0:25:57]}  Re2 {[%clk 0:26:14]} 48. Kd6 {[%clk 0:26:03]}  a5 {[%clk 0:18:20]} 49. e5 {[%clk 0:26:17]}  Rxe5 {[%clk 0:18:33]} 50. Rxh2 {[%clk 0:26:37]}  Rxf5 {[%clk 0:19:01]} 51. c4 {[%clk 0:26:14]}  b6 {[%clk 0:19:10]} 52. Rb2 {[%clk 0:24:52]}  Rc5 {[%clk 0:19:16]} 53. Ke6 {[%clk 0:25:16]}  Rxc4 {[%clk 0:15:17]} 54. Rg2+ {[%clk 0:25:10]}  Kf8 {[%clk 0:15:42]} 55. Kxf6 {[%clk 0:25:25]}  Ke8 {[%clk 0:15:58]} 56. Ke6 {[%clk 0:25:46]}  Kd8 {[%clk 0:16:11]} 57. Rg7 {[%clk 0:25:24]}  Kc8 {[%clk 0:16:33]} 58. Kd6 {[%clk 0:25:39]}  Kb8 {[%clk 0:16:49]} 59. Rh7 {[%clk 0:25:58]}  Rc5 {[%clk 0:16:53]} 60. Rg7 {[%clk 0:26:12]}  a4 {[%clk 0:17:08]} 61. Rg4 {[%clk 0:24:08]}  a3 {[%clk 0:17:08]} 62. Rg2 {[%clk 0:22:42]}  Kb7 {[%clk 0:17:32]} 63. Rg7+ {[%clk 0:23:01]}  Ka6 {[%clk 0:17:54]} 64. Rg3 {[%clk 0:22:53]}  a2 {[%clk 0:17:45]} 65. Rg8 {[%clk 0:23:14]}  Kb5 {[%clk 0:18:06]} 66. Ra8 {[%clk 0:23:39]}  Rc2 {[%clk 0:18:30]} 67. Kd5 {[%clk 0:24:02]}  Kb4 {[%clk 0:18:56]} 68. Kd4 {[%clk 0:24:25]}  Kb3 {[%clk 0:19:19]} 69. Kd3 {[%clk 0:24:23]}  Rc1 {[%clk 0:19:45]} 70. Rb8 {[%clk 0:24:33]}  a1=Q {[%clk 0:20:07]} 0-1


[Site "http://www.chessbomb.com"]

[Event "World Junior Chess Championship U20 2022"]
[White "Moksh, Amit Doshi"]
[Black "Winkelman, Albert"]
[WhiteFideId "25064967"]
[BlackFideId "3219941"]
[WhiteElo "2430"]
[BlackElo "2229"]
[Result "1-0"]
[Round "05"]
[TimeControl "5400+30"]
[Date "2022.10.15"]
[WhiteClock "0:50:33"]
[BlackClock "0:24:19"]

1. d4 {[%clk 1:26:31]}  Nf6 {[%clk 1:30:40]} 2. c4 {[%clk 1:26:49]}  e6 {[%clk 1:30:21]} 3. Nc3 {[%clk 1:25:01]}  Bb4 {[%clk 1:30:37]} 4. Qc2 {[%clk 1:23:15]}  d5 {[%clk 1:28:49]} 5. a3 {[%clk 1:23:08]}  Bxc3+ {[%clk 1:27:05]} 6. Qxc3 {[%clk 1:22:41]}  Ne4 {[%clk 1:22:48]} 7. Qc2 {[%clk 1:23:03]}  c5 {[%clk 1:23:13]} 8. dxc5 {[%clk 1:23:01]}  Nc6 {[%clk 1:23:14]} 9. Nf3 {[%clk 1:23:13]}  Qa5+ {[%clk 1:13:18]} 10. Bd2 {[%clk 1:23:36]}  Nxd2 {[%clk 1:06:38]} 11. Qxd2 {[%clk 1:23:01]}  dxc4 {[%clk 1:06:50]} 12. Qxa5 {[%clk 1:13:53]}  Nxa5 {[%clk 1:07:11]} 13. e3 {[%clk 1:11:09]}  Nb3 {[%clk 1:05:36]} 14. Rd1 {[%clk 1:11:25]}  Nxc5 {[%clk 1:05:56]} 15. Bxc4 {[%clk 1:11:50]}  Ke7 {[%clk 1:04:30]} 16. b4 {[%clk 1:06:06]}  Ne4 {[%clk 1:03:45]} 17. Bd3 {[%clk 0:57:03]}  Nd6 {[%clk 1:01:52]} 18. e4 {[%clk 0:57:02]}  Bd7 {[%clk 1:02:13]} 19. Rc1 {[%clk 0:51:36]}  f5 {[%clk 0:39:28]} 20. exf5 {[%clk 0:48:35]}  exf5 {[%clk 0:39:50]} 21. Kd2 {[%clk 0:48:44]}  a5 {[%clk 0:31:59]} 22. Rhe1+ {[%clk 0:46:13]}  Kf6 {[%clk 0:32:22]} 23. Rc5 {[%clk 0:43:45]}  Rhd8 {[%clk 0:29:14]} 24. bxa5 {[%clk 0:41:42]}  Be6 {[%clk 0:04:02]} 25. Kc2 {[%clk 0:30:16]}  Rdc8 {[%clk 0:02:44]} 26. Rxc8 {[%clk 0:29:10]}  Rxc8+ {[%clk 0:02:51]} 27. Kb2 {[%clk 0:29:21]}  Bc4 {[%clk 0:01:20]} 28. Nd4 {[%clk 0:27:47]}  Rd8 {[%clk 0:01:01]} 29. Bxc4 {[%clk 0:24:55]}  Nxc4+ {[%clk 0:01:26]} 30. Kc3 {[%clk 0:25:19]}  Nxa5 {[%clk 0:01:52]} 31. Re6+ {[%clk 0:25:43]}  Kf7 {[%clk 0:01:52]} 32. Re5 {[%clk 0:26:06]}  Rc8+ {[%clk 0:00:51]} 33. Kb4 {[%clk 0:25:07]}  Nc6+ {[%clk 0:00:35]} 34. Nxc6 {[%clk 0:25:07]}  bxc6 {[%clk 0:00:44]} 35. Rxf5+ {[%clk 0:25:51]}  Ke6 {[%clk 0:01:04]} 36. Rf3 {[%clk 0:25:26]}  Kd6 {[%clk 0:00:49]} 37. Rd3+ {[%clk 0:24:16]}  Kc7 {[%clk 0:01:12]} 38. Rg3 {[%clk 0:24:41]}  g6 {[%clk 0:01:17]} 39. Rh3 {[%clk 0:25:07]}  Rh8 {[%clk 0:01:11]} 40. Kc5 {[%clk 0:25:23]}  h5 {[%clk 0:00:43]} 41. Rf3 {[%clk 0:25:45]}  Kd7 {[%clk 0:00:53]} 42. Rd3+ {[%clk 0:25:19]}  Kc7 {[%clk 0:00:43]} 43. Rd6 {[%clk 0:25:14]}  Rf8 {[%clk 0:28:41]} 44. Rxc6+ {[%clk 0:25:14]}  Kb7 {[%clk 0:29:06]} 45. Rxg6 {[%clk 0:51:16]}  Rxf2 {[%clk 0:29:21]} 46. Rg5 {[%clk 0:51:03]}  h4 {[%clk 0:29:07]} 47. h3 {[%clk 0:51:25]}  Ka6 {[%clk 0:27:20]} 48. Rg4 {[%clk 0:50:49]}  Rd2 {[%clk 0:25:40]} 49. Kc4 {[%clk 0:50:33]}  Kb6 {[%clk 0:25:09]} 50. Kc3 {[%clk 0:50:57]}  Ra2 {[%clk 0:25:33]} 51. a4 {[%clk 0:51:07]}  Kc5 {[%clk 0:24:19]} 52. Kd3 {[%clk 0:50:33]}  Kd5 {[%clk 0:24:19]} 1-0


[Site "http://www.chessbomb.com"]

[Event "World Junior Chess Championship U20 2022"]
[White "Zemach, Nadav"]
[Black "Muradli, Mahammad"]
[WhiteFideId "2820927"]
[BlackFideId "13409301"]
[WhiteElo "2293"]
[BlackElo "2550"]
[Result "1-0"]
[Round "05"]
[TimeControl "5400+30"]
[Date "2022.10.15"]
[WhiteClock "0:04:38"]
[BlackClock "0:01:27"]

1. d4 {[%clk 1:30:59]}  Nf6 {[%clk 1:26:32]} 2. c4 {[%clk 1:31:24]}  e6 {[%clk 1:26:55]} 3. g3 {[%clk 1:31:47]}  c5 {[%clk 1:27:11]} 4. d5 {[%clk 1:32:11]}  exd5 {[%clk 1:27:32]} 5. cxd5 {[%clk 1:32:38]}  d6 {[%clk 1:27:51]} 6. Nc3 {[%clk 1:32:47]}  g6 {[%clk 1:28:16]} 7. Bg2 {[%clk 1:33:14]}  Bg7 {[%clk 1:28:16]} 8. Nf3 {[%clk 1:33:41]}  O-O {[%clk 1:28:47]} 9. O-O {[%clk 1:34:07]}  a6 {[%clk 1:28:58]} 10. a4 {[%clk 1:34:31]}  Re8 {[%clk 1:28:30]} 11. Bf4 {[%clk 1:34:54]}  Nh5 {[%clk 1:24:55]} 12. Bg5 {[%clk 1:31:20]}  Qc7 {[%clk 1:23:04]} 13. Qd2 {[%clk 1:26:22]}  Nd7 {[%clk 1:20:02]} 14. Rfe1 {[%clk 1:16:40]}  Rb8 {[%clk 1:11:48]} 15. e4 {[%clk 1:09:19]}  b5 {[%clk 1:07:29]} 16. axb5 {[%clk 1:07:10]}  axb5 {[%clk 1:07:53]} 17. g4 {[%clk 1:01:11]}  Nhf6 {[%clk 1:03:44]} 18. e5 {[%clk 1:01:30]}  dxe5 {[%clk 0:53:23]} 19. d6 {[%clk 1:01:16]}  Qd8 {[%clk 0:51:55]} 20. Nd5 {[%clk 0:57:22]}  Bb7 {[%clk 0:50:28]} 21. Ne7+ {[%clk 0:47:21]}  Kh8 {[%clk 0:50:18]} 22. Nxe5 {[%clk 0:42:28]}  Nxe5 {[%clk 0:49:14]} 23. Rxe5 {[%clk 0:39:12]}  Bxg2 {[%clk 0:46:14]} 24. Kxg2 {[%clk 0:37:42]}  Qd7 {[%clk 0:40:06]} 25. f3 {[%clk 0:34:15]}  Rbd8 {[%clk 0:27:44]} 26. Rd1 {[%clk 0:33:56]}  Nxg4 {[%clk 0:27:14]} 27. Rxc5 {[%clk 0:34:12]}  Ne5 {[%clk 0:26:18]} 28. Qd5 {[%clk 0:28:22]}  Nc4 {[%clk 0:17:43]} 29. Bf4 {[%clk 0:22:58]}  Nb6 {[%clk 0:13:00]} 30. Qe4 {[%clk 0:21:37]}  Qa7 {[%clk 0:10:28]} 31. Rxb5 {[%clk 0:17:23]}  Qa6 {[%clk 0:08:30]} 32. Qb4 {[%clk 0:14:04]}  Nd7 {[%clk 0:06:44]} 33. Rd2 {[%clk 0:14:25]}  Rb8 {[%clk 0:05:50]} 34. Rxb8 {[%clk 0:12:21]}  Rxb8 {[%clk 0:06:03]} 35. Qe4 {[%clk 0:12:19]}  Qa2 {[%clk 0:00:58]} 36. b4 {[%clk 0:06:03]}  Qa4 {[%clk 0:00:43]} 37. Nc6 {[%clk 0:06:07]}  Rf8 {[%clk 0:00:33]} 38. Ne5 {[%clk 0:06:17]}  Kg8 {[%clk 0:00:32]} 39. Nxd7 {[%clk 0:05:47]}  Qxd7 {[%clk 0:01:01]} 40. Qe7 {[%clk 0:05:34]}  Qf5 {[%clk 0:01:02]} 41. d7 {[%clk 0:05:34]}  Bf6 {[%clk 0:01:27]} 42. Qxf8+ {[%clk 0:04:38]} 1-0


[Site "http://www.chessbomb.com"]

[Event "World Junior Chess Championship U20 2022"]
[White "Nouri, Alekhine"]
[Black "Kozak, Antoni"]
[WhiteFideId "5216184"]
[BlackFideId "21832030"]
[WhiteElo "2251"]
[BlackElo "2440"]
[Result "1/2-1/2"]
[Round "05"]
[TimeControl "5400+30"]
[Date "2022.10.15"]
[WhiteClock "0:26:29"]
[BlackClock "0:48:05"]

1. e4 {[%clk 1:30:10]}  c6 {[%clk 1:30:34]} 2. d4 {[%clk 1:29:13]}  d5 {[%clk 1:30:36]} 3. exd5 {[%clk 1:28:57]}  cxd5 {[%clk 1:30:21]} 4. Bd3 {[%clk 1:28:46]}  Nc6 {[%clk 1:30:33]} 5. c3 {[%clk 1:28:46]}  Qc7 {[%clk 1:30:47]} 6. Ne2 {[%clk 1:29:20]}  Bg4 {[%clk 1:30:21]} 7. O-O {[%clk 1:28:15]}  e6 {[%clk 1:29:22]} 8. Qe1 {[%clk 1:28:04]}  Nf6 {[%clk 1:28:18]} 9. f3 {[%clk 1:27:34]}  Bh5 {[%clk 1:28:27]} 10. Qh4 {[%clk 1:27:46]}  h6 {[%clk 1:22:52]} 11. Ng3 {[%clk 1:18:41]}  Bg6 {[%clk 1:22:25]} 12. Bxg6 {[%clk 1:16:11]}  fxg6 {[%clk 1:22:33]} 13. Ne2 {[%clk 1:04:56]}  Kf7 {[%clk 1:05:57]} 14. f4 {[%clk 0:49:20]}  Bd6 {[%clk 0:57:50]} 15. h3 {[%clk 0:49:12]}  Rhf8 {[%clk 0:54:49]} 16. Nd2 {[%clk 0:45:48]}  Kg8 {[%clk 0:53:54]} 17. Nf3 {[%clk 0:40:36]}  Ne4 {[%clk 0:51:34]} 18. Qg4 {[%clk 0:27:35]}  Rf6 {[%clk 0:47:33]} 19. Ne5 {[%clk 0:25:17]}  Ne7 {[%clk 0:46:12]} 20. c4 {[%clk 0:14:30]}  dxc4 {[%clk 0:36:36]} 21. Qf3 {[%clk 0:13:54]}  Ng5 {[%clk 0:36:35]} 22. Qc3 {[%clk 0:12:10]}  Nh7 {[%clk 0:34:29]} 23. Nxc4 {[%clk 0:10:25]}  Nd5 {[%clk 0:34:20]} 24. Qb3 {[%clk 0:10:16]}  g5 {[%clk 0:33:27]} 25. Nc3 {[%clk 0:05:09]}  Nxc3 {[%clk 0:33:16]} 26. bxc3 {[%clk 0:05:32]}  Bxf4 {[%clk 0:33:02]} 27. Bxf4 {[%clk 0:05:34]}  gxf4 {[%clk 0:33:10]} 28. Ne5 {[%clk 0:05:55]}  h5 {[%clk 0:29:12]} 29. Rae1 {[%clk 0:05:30]}  Rc8 {[%clk 0:29:16]} 30. Kh1 {[%clk 0:05:34]}  b6 {[%clk 0:27:04]} 31. c4 {[%clk 0:05:32]}  Ng5 {[%clk 0:26:44]} 32. c5 {[%clk 0:05:42]}  Qd8 {[%clk 0:24:32]} 33. h4 {[%clk 0:01:51]}  Nf7 {[%clk 0:24:02]} 34. cxb6 {[%clk 0:02:18]}  axb6 {[%clk 0:24:02]} 35. Re4 {[%clk 0:02:36]}  Qd5 {[%clk 0:20:05]} 36. Qxd5 {[%clk 0:01:15]}  exd5 {[%clk 0:20:30]} 37. Rexf4 {[%clk 0:01:41]}  Rxf4 {[%clk 0:20:33]} 38. Rxf4 {[%clk 0:02:08]}  Nxe5 {[%clk 0:20:59]} 39. dxe5 {[%clk 0:02:32]}  Rc4 {[%clk 0:21:13]} 40. g3 {[%clk 0:01:59]}  g5 {[%clk 0:16:23]} 41. Rf6 {[%clk 0:28:23]}  gxh4 {[%clk 0:46:46]} 42. Rxb6 {[%clk 0:23:55]}  hxg3 {[%clk 0:47:06]} 43. Rg6+ {[%clk 0:24:07]}  Kf7 {[%clk 0:47:32]} 44. Rxg3 {[%clk 0:24:33]}  Ke6 {[%clk 0:47:10]} 45. Rg5 {[%clk 0:24:21]}  d4 {[%clk 0:46:22]} 46. Kg2 {[%clk 0:23:59]}  d3 {[%clk 0:46:36]} 47. Kf2 {[%clk 0:23:55]}  Rd4 {[%clk 0:45:12]} 48. Ke1 {[%clk 0:23:49]}  d2+ {[%clk 0:45:26]} 49. Kd1 {[%clk 0:24:13]}  h4 {[%clk 0:45:54]} 50. Rh5 {[%clk 0:24:38]}  Kd5 {[%clk 0:46:18]} 51. a4 {[%clk 0:24:35]}  Rxa4 {[%clk 0:46:23]} 52. Kxd2 {[%clk 0:24:58]}  Re4 {[%clk 0:46:52]} 53. Kd3 {[%clk 0:25:13]}  Rxe5 {[%clk 0:47:11]} 54. Rxh4 {[%clk 0:25:39]}  Ke6 {[%clk 0:47:38]} 55. Re4 {[%clk 0:26:03]}  Rxe4 {[%clk 0:48:05]} 56. Kxe4 {[%clk 0:26:29]} 1/2-1/2


[Site "http://www.chessbomb.com"]

[Event "World Junior Chess Championship U20 2022"]
[White "Siddharth, Jagadeesh"]
[Black "Vagman, Roy"]
[WhiteFideId "5818320"]
[BlackFideId "2828995"]
[WhiteElo "2415"]
[BlackElo "2274"]
[Result "1-0"]
[Round "05"]
[TimeControl "5400+30"]
[Date "2022.10.15"]
[WhiteClock "0:45:12"]
[BlackClock "0:07:32"]

1. d4 {[%clk 0:00:00]}  d5 {[%clk 1:30:52]} 2. c4 {[%clk 1:30:01]}  e6 {[%clk 1:31:08]} 3. Nc3 {[%clk 1:30:10]}  c5 {[%clk 1:30:51]} 4. cxd5 {[%clk 1:30:28]}  cxd4 {[%clk 1:31:09]} 5. Qa4+ {[%clk 1:27:25]}  Bd7 {[%clk 1:31:26]} 6. Qxd4 {[%clk 1:27:50]}  exd5 {[%clk 1:31:45]} 7. Qxd5 {[%clk 1:27:41]}  Nf6 {[%clk 1:31:59]} 8. Qb3 {[%clk 1:27:47]}  Na6 {[%clk 1:29:17]} 9. Nf3 {[%clk 1:24:43]}  Nc5 {[%clk 1:27:38]} 10. Qc2 {[%clk 1:23:50]}  Rc8 {[%clk 1:26:55]} 11. e3 {[%clk 1:07:30]}  Na4 {[%clk 1:19:48]} 12. Bd3 {[%clk 1:00:57]}  Bb4 {[%clk 1:17:46]} 13. Bd2 {[%clk 0:59:50]}  Qa5 {[%clk 1:15:17]} 14. O-O {[%clk 0:56:35]}  Nxc3 {[%clk 1:02:55]} 15. bxc3 {[%clk 0:56:54]}  Bxc3 {[%clk 1:01:12]} 16. Rac1 {[%clk 0:54:58]}  Bxd2 {[%clk 1:00:50]} 17. Qxc8+ {[%clk 0:55:18]}  Bxc8 {[%clk 1:01:15]} 18. Rxc8+ {[%clk 0:55:41]}  Ke7 {[%clk 1:01:40]} 19. Rxh8 {[%clk 0:56:04]}  Qc3 {[%clk 0:59:27]} 20. Bf5 {[%clk 0:53:44]}  Ne8 {[%clk 0:47:45]} 21. Rxh7 {[%clk 0:51:16]}  Nd6 {[%clk 0:46:29]} 22. Bb1 {[%clk 0:50:35]}  Bc1 {[%clk 0:39:13]} 23. Rh5 {[%clk 0:47:42]}  Ba3 {[%clk 0:31:17]} 24. Rd5 {[%clk 0:45:09]}  Bc5 {[%clk 0:29:07]} 25. Rfd1 {[%clk 0:44:49]}  b6 {[%clk 0:22:40]} 26. Ne5 {[%clk 0:43:11]}  f6 {[%clk 0:20:54]} 27. Nd3 {[%clk 0:43:02]}  Ba3 {[%clk 0:19:10]} 28. Nf4 {[%clk 0:43:14]}  Qc8 {[%clk 0:18:24]} 29. h3 {[%clk 0:42:04]}  g5 {[%clk 0:17:18]} 30. Ne2 {[%clk 0:42:12]}  Bc5 {[%clk 0:16:06]} 31. Ng3 {[%clk 0:42:12]}  Kf7 {[%clk 0:10:48]} 32. Nf5 {[%clk 0:41:52]}  Nxf5 {[%clk 0:10:36]} 33. Bxf5 {[%clk 0:42:15]}  Qa6 {[%clk 0:10:25]} 34. Rd7+ {[%clk 0:42:39]}  Be7 {[%clk 0:08:47]} 35. Rc1 {[%clk 0:41:38]}  Qxa2 {[%clk 0:07:48]} 36. g4 {[%clk 0:41:55]}  a5 {[%clk 0:06:08]} 37. Rcc7 {[%clk 0:42:10]}  Qa3 {[%clk 0:06:31]} 38. Rxe7+ {[%clk 0:42:23]}  Qxe7 {[%clk 0:06:55]} 39. Rxe7+ {[%clk 0:42:47]}  Kxe7 {[%clk 0:07:22]} 40. Kf1 {[%clk 0:43:01]}  Kd6 {[%clk 0:07:12]} 41. Ke2 {[%clk 0:43:23]}  b5 {[%clk 0:07:16]} 42. Kd3 {[%clk 0:43:25]}  Kc5 {[%clk 0:07:41]} 43. Kc3 {[%clk 0:43:40]}  a4 {[%clk 0:07:41]} 44. Bd7 {[%clk 0:44:01]}  b4+ {[%clk 0:07:42]} 45. Kb2 {[%clk 0:44:22]}  a3+ {[%clk 0:07:28]} 46. Kb3 {[%clk 0:44:47]}  Kd5 {[%clk 0:07:32]} 47. Bf5 {[%clk 0:45:12]} 1-0


[Site "http://www.chessbomb.com"]